bitfinex-derivatives/quotes_ETHF0:USTF0_20250908
["timestamp","ask_amount","ask_price","bid_price","bid_amount"]
[1757333343435,2.41517202,4311.5,4311.4,2.2228]
[1757333347840,0.1157,4311.9,4311.8,1.2591]
[1757333348035,0.00347645,4312.5,4312.0,0.3906]
[1757333348240,0.00347645,4312.5,4312.4,5.4528]
[1757333348740,0.00347645,4312.5,4312.4,9.4528]
[1757333350643,0.1157,4312.8,4312.4,9.4528]
[1757333350835,0.233,4313.5,4313.4,1.2591]
[1757333351033,2.00236374,4313.5,4313.4,2.245]
[1757333351438,2.61016374,4313.5,4313.4,2.245]
[1757333352143,2.4203,4313.5,4313.4,2.245]
[1757333352438,0.68091603,4314.0,4313.9,1.2591]
[1757333352439,2.7831,4314.0,4313.9,1.2591]
[1757333352636,2.97279399,4314.0,4313.9,2.245]
[1757333353949,2.7831,4314.0,4313.9,2.245]
[1757333354843,2.4233,4314.0,4313.9,2.245]
[1757333356450,1.5795,4314.0,4313.9,2.245]
[1757333358253,2.5471,4314.0,4313.9,2.245]
[1757333359447,0.3598,4315.0,4313.9,2.245]
[1757333359644,2.1873,4314.8,4314.7,2.245]
[1757333359849,1.5795,4314.8,4314.7,5.4528]
[1757333360049,0.659,4314.8,4314.7,5.4528]
[1757333360250,1.5795,4314.8,4314.7,5.4528]
[1757333364950,1.5795,4314.8,4314.1,3.2078]
[1757333364951,0.3598,4314.5,4314.1,3.2078]
[1757333365155,2.1873,4314.2,4314.1,3.2078]
[1757333366053,2.1873,4314.2,4314.1,3.8379]
[1757333367959,2.1873,4314.2,4314.1,0.6301]
[1757333368355,2.1873,4314.2,4313.8,0.9859]
[1757333368551,1.2668,4314.2,4313.6,3.4428]
[1757333368762,2.1873,4314.1,4314.0,0.6301]
[1757333369054,2.1873,4313.8,4313.7,1.616]
[1757333369851,0.9205,4313.7,4313.6,3.2078]
[1757333370055,2.95436028,4313.7,4313.6,3.2078]
[1757333371359,2.95441623,4313.7,4313.6,3.2078]
[1757333372354,3.18941623,4313.7,4313.6,3.2078]
[1757333372554,7.18941623,4313.7,4313.6,3.2078]
[1757333372961,7.42123623,4313.7,4313.6,2.2127]
[1757333374956,7.18941623,4313.7,4313.6,2.2127]
[1757333375759,3.18941623,4313.7,4313.6,4.45]
[1757333375958,3.18941623,4313.7,4313.1,0.9838]
[1757333376163,2.2222,4313.2,4313.1,2.2373]
[1757333376355,3.22431623,4313.2,4313.1,2.2373]
[1757333376762,2.25921623,4313.2,4313.1,2.2373]
[1757333377761,3.22431623,4313.2,4313.1,2.2373]
[1757333378962,2.25921623,4313.2,4313.1,2.2373]
[1757333379764,1.63071623,4313.2,4313.1,2.2373]
[1757333380070,1.00211623,4313.2,4313.1,2.2373]
[1757333380468,1.63071623,4313.2,4313.1,2.2373]
[1757333382669,2.59581623,4313.2,4313.1,2.2373]
[1757333383063,2.40919029,4313.2,4313.1,2.2373]
[1757333383265,2.59641128,4313.2,4313.1,2.2373]
[1757333383470,1.63131128,4313.2,4313.1,2.2373]
[1757333383975,1.39631128,4313.2,4313.1,2.2373]
[1757333384273,1.63131128,4313.2,4313.1,2.2373]
[1757333384769,0.76771128,4313.2,4313.1,2.2373]
[1757333384965,0.0987,4313.4,4313.1,5.2535]
[1757333385268,0.0987,4313.4,4313.3,2.2373]
[1757333385468,0.235,4313.6,4313.3,1.2535]
[1757333385660,0.235,4313.6,4313.5,2.6059]
[1757333385858,3.2078,4313.9,4313.6,0.9838]
[1757333386159,3.2078,4313.9,4313.5,0.3686]
[1757333386160,3.2078,4313.9,4313.8,2.2373]
[1757333386363,3.4428,4313.9,4313.8,2.2373]
[1757333387470,5.0365,4313.9,4313.8,2.2373]
[1757333387866,5.665,4313.9,4313.8,2.2373]
[1757333388870,5.665,4313.9,4313.5,0.9838]
[1757333389969,5.665,4313.9,4313.1,0.9838]
[1757333390975,5.665,4313.9,4313.8,0.6031]
[1757333391871,5.665,4313.9,4313.1,0.9838]
[1757333392774,1.2571,4313.2,4313.1,1.5869]
[1757333392975,2.4572,4313.2,4313.1,1.5869]
[1757333393576,2.4572,4313.2,4313.1,2.2373]
[1757333397077,3.21727849,4313.2,4313.1,2.2373]
[1757333398774,3.21727849,4313.2,4313.1,0.6031]
[1757333399680,3.21727849,4313.2,4313.1,1.5869]
[1757333400677,2.5821,4313.0,4312.9,3.8109]
[1757333400876,3.57717849,4313.0,4312.9,4.7947]
[1757333401274,3.57717849,4313.0,4312.9,3.8109]
[1757333402185,3.57717849,4313.0,4312.9,0.6031]
[1757333404385,3.57717849,4313.0,4312.9,1.5869]
[1757333405385,3.57717849,4313.0,4312.9,2.2373]
[1757333405786,3.21727849,4313.0,4312.9,2.2373]
[1757333409690,2.98227849,4313.0,4312.9,2.2373]
[1757333409892,3.21727849,4313.0,4312.9,2.2373]
[1757333411594,0.882,4312.9,4312.8,1.392]
[1757333411796,2.88177849,4312.9,4312.8,1.392]
[1757333412095,6.08957849,4312.9,4312.8,1.392]
[1757333413097,6.08957849,4312.9,4312.3,3.2712]
[1757333413392,2.1217,4312.4,4312.3,4.8169]
[1757333413598,3.11676615,4312.4,4312.3,4.8169]
[1757333414297,3.21546615,4312.4,4312.3,4.8169]
[1757333414600,3.21546615,4312.4,4312.3,5.4613]
[1757333415499,2.61016615,4312.4,4312.3,5.4613]
[1757333417703,3.21546615,4312.4,4312.3,5.4613]
[1757333420504,3.21546615,4312.4,4312.3,3.2712]
[1757333421400,3.22030729,4312.4,4312.3,3.2712]
[1757333421790,2.33830729,4312.4,4312.1,3.5925]
[1757333421993,2.00460729,4312.3,4312.2,0.6212]
[1757333422200,2.00460729,4312.3,4312.2,1.5457]
[1757333422404,2.00460729,4312.3,4312.2,2.1901]
[1757333422702,2.88660729,4312.3,4312.2,2.1901]
[1757333426305,2.00460729,4312.3,4312.2,0.6212]
[1757333426603,2.00460729,4312.3,4312.2,2.1901]
[1757333426804,2.88660729,4312.3,4312.2,2.1901]
[1757333427597,2.88660729,4312.3,4312.2,0.6212]
[1757333427801,2.88660729,4312.3,4312.1,2.668]
[1757333428103,3.12160729,4312.2,4312.1,2.668]
[1757333428506,3.12158929,4312.2,4312.1,2.668]
[1757333429394,3.12158929,4312.2,4312.1,3.2892]
[1757333429799,3.12158929,4312.2,4312.1,4.2137]
[1757333430305,3.22028929,4312.2,4312.1,4.8581]
[1757333431708,3.22029081,4312.2,4312.1,4.8581]
[1757333439216,2.61499081,4312.2,4312.1,4.8581]
[1757333441315,1.09859081,4312.2,4312.1,4.8581]
[1757333442318,2.68339081,4312.2,4312.1,4.8581]
[1757333442709,0.86359081,4312.2,4312.1,4.8581]
[1757333442909,0.3811,4315.0,4312.1,4.8581]
[1757333442910,1.47933875,4313.2,4312.8,1.1752]
[1757333443110,1.1854,4313.2,4313.1,2.0188]
[1757333443511,1.8198,4313.2,4313.1,2.0188]
[1757333446417,2.3981,4313.2,4313.1,1.1752]
[1757333446617,2.3981,4313.2,4312.8,0.235]
[1757333446816,1.5848,4312.9,4312.8,0.8309]
[1757333447018,1.8198,4312.9,4312.8,1.1752]
[1757333447217,1.8198,4312.9,4312.8,2.0188]
[1757333447520,2.3981,4312.9,4312.8,1.1752]
[1757333447718,0.9504,4312.8,4312.5,3.4568]
[1757333447915,2.1631,4312.6,4312.5,3.4568]
[1757333451012,6.39498,4312.6,4312.5,0.4804]
[1757333451217,7.63931875,4312.6,4311.1,0.9418]
[1757333451421,3.2078,4311.3,4311.1,0.9418]
[1757333451616,0.235,4311.2,4311.1,0.9418]
[1757333452020,0.235,4311.2,4311.1,4.4609]
[1757333452213,3.2078,4311.3,4311.2,0.9418]
[1757333452416,0.235,4311.3,4311.2,2.117]
[1757333454322,3.2078,4311.8,4311.3,0.9418]
[1757333454626,0.235,4311.7,4311.5,0.3686]
[1757333454818,0.235,4311.7,4311.6,0.9418]
[1757333455018,0.97920808,4311.7,4311.6,0.9418]
[1757333456626,0.97920808,4311.7,4311.6,1.5377]
[1757333457724,0.97920808,4311.7,4311.5,0.3686]
[1757333457926,0.74420808,4311.6,4311.5,1.3104]
[1757333458124,0.74420808,4311.6,4311.5,1.9063]
[1757333458619,4.74420808,4311.6,4311.1,0.5959]
[1757333458818,4.74420808,4311.6,4311.0,0.3686]
[1757333458819,0.97920808,4311.5,4311.3,0.9418]
[1757333459023,0.74420808,4311.4,4311.3,2.117]
[1757333461028,0.80894384,4311.4,4311.3,2.117]
[1757333461420,0.57394384,4311.4,4311.3,2.117]
[1757333461621,0.57394384,4311.4,4311.0,0.3686]
[1757333461622,3.2078,4311.8,4311.7,1.1752]
[1757333461821,4.19873535,4311.8,4311.7,2.117]
[1757333462521,4.19873535,4311.8,4311.7,0.9418]
[1757333463127,8.19873535,4311.8,4311.7,0.9418]
[1757333465427,8.21233535,4311.8,4311.7,0.9418]
[1757333468228,8.21233535,4311.8,4311.7,1.8695]
[1757333468431,8.21663535,4311.8,4311.7,1.8695]
[1757333470525,8.21233535,4311.8,4311.7,1.8695]
[1757333470831,8.21663535,4311.8,4311.7,0.70889287]
[1757333471922,8.21233535,4311.8,4311.0,0.3677331]
[1757333472127,2.0784,4311.1,4311.0,0.9581331]
[1757333472331,2.3134,4311.1,4311.0,0.9581331]
[1757333472934,1.4507,4311.1,4311.0,2.5067331]
[1757333473134,2.03617565,4311.1,4311.0,2.5067331]
[1757333473835,2.20623936,4311.1,4311.0,2.5067331]
[1757333477336,2.03617565,4311.1,4311.0,2.5067331]
[1757333477537,2.21036279,4311.1,4311.0,2.5067331]
[1757333477735,1.60566279,4311.1,4311.0,2.5067331]
[1757333478638,0.99466279,4311.1,4311.0,2.5067331]
[1757333480035,1.60566279,4311.1,4311.0,2.5067331]
[1757333483237,1.60609942,4311.1,4311.0,2.5067331]
[1757333483637,0.99509942,4311.1,4311.0,2.5067331]
[1757333484837,0.99509538,4311.1,4311.0,2.5067331]
[1757333485827,0.76009538,4311.1,4311.0,2.5067331]
[1757333489938,0.235,4311.6,4311.5,2.4884]
[1757333490138,0.235,4311.6,4311.5,5.6962]
[1757333490333,1.24433875,4312.1,4311.5,8.7543]
[1757333490547,5.92583875,4312.6,4312.5,1.5465]
[1757333490737,6.76553875,4312.6,4312.5,2.4884]
[1757333491039,5.5212,4312.6,4312.5,2.139]
[1757333495746,5.5212,4312.6,4312.5,1.5323]
[1757333499243,5.2862,4312.6,4312.5,1.5323]
[1757333499443,5.5202,4312.6,4312.5,1.5323]
[1757333499847,5.5202,4312.6,4312.5,2.1134]
[1757333500056,5.5202,4312.6,4312.5,2.4812]
[1757333500451,5.5202,4312.6,4312.5,2.1134]
[1757333501049,5.2862,4312.6,4312.5,2.1134]
[1757333501248,4.0528,4312.6,4312.5,2.4812]
[1757333501752,5.6535407,4312.6,4312.5,2.4812]
[1757333503953,4.7932407,4312.6,4312.5,2.4812]
[1757333504456,5.6535407,4312.6,4312.5,2.4812]
[1757333506157,5.65100183,4312.6,4312.5,2.4812]
[1757333506759,2.44320183,4312.6,4312.5,2.4812]
[1757333508659,3.03170183,4312.6,4312.5,2.4812]
[1757333508855,0.73790183,4312.6,4312.5,2.4812]
[1757333509052,0.80581106,4312.6,4312.5,5.689]
[1757333509948,0.97196154,4312.6,4312.5,2.4812]
[1757333510560,1.43361106,4312.6,4312.5,2.4812]
[1757333510961,2.46007178,4312.6,4312.5,2.4812]
[1757333511158,1.36577178,4312.6,4312.5,2.4812]
[1757333511361,0.97197178,4312.6,4312.5,2.4812]
[1757333511755,1.36577178,4312.6,4312.5,2.4812]
[1757333511957,2.46007178,4312.6,4312.5,2.4812]
[1757333512261,3.04857178,4312.6,4312.5,2.4812]
[1757333516563,3.04857178,4312.6,4312.3,0.9241]
[1757333516763,2.3106,4312.6,4312.5,0.5992]
[1757333516959,3.04931103,4312.6,4312.3,0.9241]
[1757333517159,2.0766,4312.4,4312.3,1.5233]
[1757333517366,3.04931103,4312.4,4312.3,1.5233]
[1757333517566,2.18901103,4312.4,4312.1,0.9241]
[1757333517756,2.0766,4312.2,4312.1,0.9241]
[1757333517960,0.8603,4312.1,4311.6,1.6936]
[1757333518160,2.0766,4311.7,4311.6,2.8739]
[1757333518464,2.88293124,4311.7,4311.6,2.8739]
[1757333518664,2.88293124,4311.7,4311.6,3.798]
[1757333519169,3.04939339,4311.7,4311.6,3.798]
[1757333522562,3.04939339,4311.7,4311.6,1.6936]
[1757333523269,3.04939339,4311.7,4311.6,2.6177]
[1757333523468,3.04939339,4311.7,4311.6,1.6936]
[1757333524670,3.04939339,4311.7,4311.6,3.2169]
[1757333525474,3.04939339,4311.7,4311.6,1.6936]
[1757333527770,3.04939339,4311.7,4311.6,0.9332]
[1757333527966,3.04939339,4311.7,4311.6,1.5201]
[1757333542987,3.04939339,4311.7,4311.6,0.5869]
[1757333543281,3.04939339,4311.7,4311.4,0.9332]
[1757333543482,1.2303,4311.5,4311.4,0.5869]
[1757333543682,3.12709339,4311.5,4311.4,1.5201]
[1757333545183,2.56109339,4311.5,4311.3,2.7848]
[1757333545387,2.89309339,4311.4,4311.3,4.3049]
[1757333546778,2.89309339,4311.4,4311.3,4.9322]
[1757333548886,0.97279339,4311.4,4311.3,4.9322]
[1757333549387,2.49879339,4311.4,4311.3,4.9322]
[1757333550786,1.57479339,4311.4,4311.3,4.9322]
[1757333551088,0.97279339,4311.4,4311.3,4.9322]
[1757333551690,1.57479339,4311.4,4311.3,4.9322]
[1757333552889,2.49879339,4311.4,4311.3,4.9322]
[1757333553286,3.12709339,4311.4,4311.3,4.9322]
[1757333557289,3.12922998,4311.4,4311.3,4.9322]
[1757333558192,0.97492998,4311.4,4311.3,4.9322]
[1757333562293,0.80846783,4311.4,4311.3,4.9322]
[1757333562501,0.97538984,4311.4,4311.3,4.9322]
[1757333563098,2.39108984,4311.4,4311.3,4.9322]
[1757333563805,2.94868984,4311.4,4311.3,4.9322]
[1757333564797,2.94860247,4311.4,4311.3,4.9322]
[1757333569599,2.94587483,4311.4,4311.3,4.9322]
[1757333571507,4.19021358,4311.4,4311.3,4.9322]
[1757333572412,3.17782484,4311.4,4311.3,2.7848]
[1757333572911,2.94587483,4311.4,4311.3,3.6206]
[1757333573102,2.94589177,4311.4,4311.3,3.6206]
[1757333574912,2.94589177,4311.4,4310.8,2.6456]
[1757333575206,1.9733,4311.0,4310.9,2.0051]
[1757333575410,2.94589177,4311.0,4310.9,2.0051]
[1757333577701,2.78168046,4311.0,4310.9,2.0051]
[1757333577908,2.94569648,4311.0,4310.9,2.0051]
[1757333580912,2.71169648,4311.0,4310.9,2.0051]
[1757333581108,2.94569648,4311.0,4310.9,2.0051]
[1757333584422,2.71169648,4311.0,4310.9,2.0051]
[1757333584823,2.94569648,4311.0,4310.9,2.0051]
[1757333586029,1.52609648,4311.0,4310.9,2.0051]
[1757333586726,2.38619648,4311.0,4310.9,2.0051]
[1757333587322,0.73839648,4311.0,4310.9,2.0051]
[1757333587630,3.2078,4311.8,4311.6,1.9648]
[1757333587815,3.2078,4311.8,4311.7,1.9648]
[1757333588019,5.4298,4311.8,4311.7,1.9648]
[1757333589122,5.4298,4311.8,4311.7,0.5556]
[1757333589327,5.4298,4311.8,4311.0,1.9648]
[1757333589328,1.1279,4311.1,4311.0,1.9648]
[1757333589522,2.222,4311.1,4311.0,1.9648]
[1757333589823,1.988,4310.9,4310.8,2.6456]
[1757333590028,2.222,4310.9,4310.8,4.0576]
[1757333590428,2.222,4310.9,4310.8,4.6104]
[1757333590929,1.0941,4310.9,4310.8,4.6104]
[1757333591118,0.234,4310.9,4310.8,4.6104]
[1757333591728,1.0941,4310.9,4310.8,4.6104]
[1757333593125,1.0941,4310.9,4310.8,1.9648]
[1757333593527,1.6682,4310.9,4310.8,1.9648]
[1757333598043,2.222,4310.9,4310.8,1.9648]
[1757333599537,2.37737618,4310.9,4310.8,1.9648]
[1757333599841,2.94864284,4310.9,4310.8,1.9648]
[1757333601038,2.71464284,4310.9,4310.8,1.9648]
[1757333601341,2.94864284,4310.9,4310.8,1.9648]
[1757333601745,2.94864284,4310.9,4310.8,1.1084]
[1757333601946,2.94864284,4310.9,4310.8,1.9648]
[1757333604251,2.94873187,4310.9,4310.8,1.9648]
[1757333605251,2.94873187,4310.9,4310.8,1.1084]
[1757333605451,2.94873187,4310.9,4310.5,0.8564]
[1757333605752,1.988,4310.6,4310.5,1.412]
[1757333606047,2.94873187,4310.6,4310.5,1.412]
[1757333606546,2.94873187,4310.6,4310.5,0.5556]
[1757333607149,2.94873187,4310.6,4310.5,1.412]
[1757333607955,2.94873187,4310.6,4310.5,1.9648]
[1757333613760,0.96073187,4310.6,4310.5,2.2986]
[1757333613957,1.82083187,4310.6,4310.5,2.2986]
[1757333614267,1.82083187,4310.6,4310.5,1.9648]
[1757333614461,0.234,4310.6,4310.5,2.53059]
[1757333614856,0.234,4310.6,4310.5,2.2986]
[1757333615455,0.812,4310.8,4310.6,0.8793]
[1757333615660,0.812,4310.8,4310.7,2.0035]
[1757333617064,1.046,4310.9,4310.8,0.8793]
[1757333617257,1.046,4310.9,4310.8,5.2113]
[1757333617961,3.2078,4311.9,4310.8,4.332]
[1757333618165,0.96125736,4311.4,4311.1,0.8793]
[1757333618362,0.234,4311.4,4311.3,2.0035]
[1757333618665,1.61782295,4311.4,4311.3,2.0035]
[1757333619367,2.18232295,4311.4,4311.3,2.0035]
[1757333620864,2.33780831,4311.4,4311.3,2.0035]
[1757333622362,2.18232295,4311.4,4311.3,2.0035]
[1757333623171,2.33778347,4311.4,4311.3,2.0035]
[1757333623368,2.18232295,4311.4,4311.3,2.0035]
[1757333623871,0.57182295,4311.4,4311.3,2.0035]
[1757333624471,0.57182295,4311.4,4311.3,5.2113]
[1757333624668,4.45889549,4312.4,4311.9,0.8793]
[1757333624876,1.046,4312.1,4312.0,2.0035]
[1757333625064,2.33744301,4312.1,4312.0,2.0035]
[1757333625465,2.93044301,4312.1,4312.0,2.0035]
[1757333625660,2.9304064,4312.1,4312.0,2.0035]
[1757333626973,2.9304064,4312.1,4312.0,1.1242]
[1757333627172,2.9304064,4312.1,4312.0,0.5672]
[1757333628266,2.696347,4312.1,4312.0,0.5672]
[1757333628465,2.930347,4312.1,4312.0,0.5672]
[1757333630570,1.9695,4311.9,4311.8,3.2078]
[1757333630771,0.3283,4311.5,4311.3,5.7606]
[1757333631075,1.9695,4311.4,4311.3,7.2071]
[1757333631572,1.9695,4311.4,4311.3,7.7641]
[1757333632368,1.9695,4311.4,4309.7,2.08310449]
[1757333632369,38.8498378,4311.4,4309.7,2.08310449]
[1757333632676,3.2078,4310.6,4309.7,0.8793]
[1757333632874,0.96230905,4310.5,4309.7,1.4465]
[1757333633066,3.2078,4310.1,4309.7,0.8793]
[1757333633266,0.96230905,4310.0,4309.5,0.9038]
[1757333633467,0.72630905,4309.9,4309.6,0.8793]
[1757333633667,0.72630905,4309.8,4309.5,0.9038]
[1757333633868,3.2078,4310.1,4309.5,0.9038]
[1757333633869,0.96230905,4309.7,4309.6,1.4465]
[1757333634878,0.80697904,4309.7,4309.6,5.2113]
[1757333635171,0.236,4309.7,4309.6,0.8793]
[1757333635371,0.236,4309.7,4309.6,1.4465]
[1757333635967,0.236,4309.7,4309.6,2.0035]
[1757333636169,3.2078,4310.1,4309.6,2.0035]
[1757333636472,0.81591028,4310.0,4309.8,1.4465]
[1757333636668,0.236,4310.0,4309.9,0.8793]
[1757333636876,0.81577458,4310.0,4309.9,0.8793]
[1757333638578,0.81577458,4310.0,4309.9,1.4465]
[1757333639975,0.81577458,4310.0,4309.9,0.8793]
[1757333640577,0.81577458,4310.0,4309.9,1.4465]
[1757333640978,0.236,4310.0,4309.9,1.4465]
[1757333641180,3.2078,4310.1,4309.9,1.1242]
[1757333641479,3.2078,4310.1,4310.0,2.3401]
[1757333641875,3.4438,4310.1,4310.0,2.3401]
[1757333644487,3.4428,4310.1,4310.0,2.3401]
[1757333645384,3.5588,4310.1,4310.0,2.3401]
[1757333645685,3.5588,4310.1,4310.0,1.7831]
[1757333646386,3.5588,4310.1,4310.0,1.2159]
[1757333646587,4.13766101,4310.1,4310.0,1.2159]
[1757333646780,4.29246061,4310.1,4310.0,1.2159]
[1757333648285,4.13766101,4310.1,4310.0,1.2159]
[1757333650076,4.13766101,4310.1,4310.0,1.7879]
[1757333650883,4.2923808,4310.1,4310.0,1.7879]
[1757333651695,4.2923808,4310.1,4310.0,2.3606]
[1757333652487,3.90266101,4310.1,4310.0,2.3606]
[1757333652689,3.5588,4310.1,4310.0,2.3606]
[1757333656488,0.351,4310.1,4310.0,2.3606]
[1757333656688,0.116,4310.1,4310.0,2.3606]
[1757333657092,0.351,4310.1,4310.0,2.3606]
[1757333657595,3.5508,4311.1,4311.0,0.9111]
[1757333657796,4.51999524,4311.1,4311.0,2.3396]
[1757333659489,4.62719524,4311.1,4311.0,1.7669]
[1757333659890,4.62719524,4311.1,4311.0,1.1949]
[1757333660089,0.343,4310.6,4310.5,0.9111]
[1757333660395,1.15730686,4310.6,4310.5,1.4838]
[1757333660895,1.31249731,4310.6,4310.5,2.3396]
[1757333663996,1.3127714,4310.6,4310.5,2.3396]
[1757333666301,0.9697714,4310.6,4310.5,2.3396]
[1757333667497,1.1412714,4310.6,4310.5,1.1949]
[1757333667693,1.1412714,4310.6,4310.5,2.3396]
[1757333669300,0.9062714,4310.6,4310.5,2.3396]
[1757333669492,1.1412714,4310.6,4310.5,2.3396]
[1757333670592,1.3127714,4310.6,4310.5,2.3396]
[1757333671199,1.31272975,4310.6,4310.5,2.3396]
[1757333672098,0.96972975,4310.6,4310.5,2.3396]
[1757333675401,1.09732975,4310.6,4310.5,2.3396]
[1757333676691,0.86232975,4310.6,4310.5,2.3396]
[1757333676896,1.09732975,4310.6,4310.5,2.3396]
[1757333678606,0.96978204,4310.6,4310.5,2.3396]
[1757333679604,0.73478204,4310.6,4310.5,2.3396]
[1757333679909,0.96978204,4310.6,4310.5,2.3396]
[1757333681604,1.09418204,4310.6,4310.5,2.3396]
[1757333682106,0.96978204,4310.6,4310.5,2.3396]
[1757333685310,1.09418204,4310.6,4310.5,2.3396]
[1757333686511,0.96978204,4310.6,4310.5,2.3396]
[1757333686706,1.09418204,4310.6,4310.5,2.3396]
[1757333687919,0.96978204,4310.6,4310.5,2.3396]
[1757333690917,0.09748204,4310.6,4310.5,2.57159]
[1757333691111,0.09748204,4310.6,4310.5,2.3396]
[1757333691509,0.09748204,4310.6,4310.5,2.57159]
[1757333691709,0.09748204,4310.6,4310.5,2.3396]
[1757333692214,4.45889549,4311.1,4310.5,2.3396]
[1757333692426,4.45889549,4311.1,4311.0,2.2462]
[1757333692612,4.69389549,4311.1,4311.0,2.2462]
[1757333693819,4.45889549,4311.1,4311.0,2.2462]
[1757333694122,3.4418,4311.1,4311.0,2.2462]
[1757333699825,3.9905,4311.1,4311.0,2.2462]
[1757333700529,5.4181,4311.1,4311.0,2.2462]
[1757333701520,5.4181,4311.1,4310.5,0.3391]
[1757333701722,5.4181,4311.1,4310.6,0.834]
[1757333702119,3.4418,4311.1,4311.0,2.2462]
[1757333702719,3.9905,4311.1,4311.0,2.2462]
[1757333702920,4.72046508,4311.1,4311.0,2.2462]
[1757333703126,4.48646508,4311.1,4311.0,2.2462]
[1757333703429,0.72996508,4311.1,4311.0,2.2462]
[1757333703829,0.57929832,4311.1,4311.0,2.2462]
[1757333707736,0.234,4311.3,4311.1,0.8329]
[1757333707919,0.57881721,4311.2,4311.1,1.9466]
[1757333711031,0.72932627,4311.2,4311.1,1.9466]
[1757333712033,1.25362627,4311.2,4311.1,1.9466]
[1757333712838,2.61752627,4311.2,4311.1,1.9466]
[1757333713241,2.46701721,4311.2,4311.1,1.9466]
[1757333713440,2.61752021,4311.2,4311.1,1.9466]
[1757333715042,2.61752021,4311.2,4311.1,1.3683]
[1757333716935,2.61752021,4311.2,4310.7,3.2078]
[1757333717133,1.0542,4310.6,4310.5,2.2857]
[1757333717333,0.57881721,4310.6,4310.5,2.2857]
[1757333717534,0.234,4310.8,4310.7,1.1137]
[1757333717734,0.9066876,4310.8,4310.7,1.9466]
[1757333717934,1.48567525,4310.8,4310.7,1.9466]
[1757333720938,2.70118765,4310.8,4310.7,1.9466]
[1757333723348,2.84970016,4310.8,4310.7,1.9466]
[1757333723541,2.01570016,4310.8,4310.7,1.9466]
[1757333725548,2.84970016,4310.8,4310.7,1.9466]
[1757333725747,2.84970016,4310.8,4310.7,0.8329]
[1757333726246,2.84970016,4310.8,4310.6,0.8329]
[1757333726548,1.78170016,4310.7,4310.3,0.8329]
[1757333726746,1.8882,4310.4,4310.3,1.3683]
[1757333726939,2.70118765,4310.4,4310.3,1.3683]
[1757333727140,2.70118765,4310.4,4310.3,1.9466]
[1757333728048,1.86718765,4310.4,4310.3,1.9466]
[1757333729043,2.70118765,4310.4,4310.3,1.3683]
[1757333729546,2.84964596,4310.4,4310.3,1.3683]
[1757333730347,2.84964596,4310.4,4310.3,0.8329]
[1757333730945,2.84964596,4310.4,4310.3,1.3683]
[1757333731347,2.84964596,4310.4,4310.3,1.9466]
[1757333734247,2.70118765,4310.4,4310.3,1.3683]
[1757333734753,2.84954093,4310.4,4310.3,1.3683]
[1757333734953,2.84954093,4310.4,4310.3,0.8329]
[1757333735147,2.84954093,4310.4,4309.7,3.2078]
[1757333735353,1.8882,4310.1,4310.0,1.4503]
[1757333735554,2.70118765,4310.1,4310.0,1.4503]
[1757333735856,2.70118765,4310.1,4310.0,2.2188]
[1757333736055,1.86718765,4310.1,4310.0,2.2188]
[1757333736748,2.69088765,4310.1,4310.0,2.2188]
[1757333737155,2.69088765,4310.1,4310.0,0.7685]
[1757333737853,2.83921876,4310.1,4310.0,0.7685]
[1757333738156,1.0297,4309.6,4309.5,0.3366]
[1757333738457,1.0297,4309.6,4309.5,2.2102]
[1757333738458,2.81471876,4309.6,4309.5,2.2102]
[1757333738656,1.99101876,4309.6,4309.5,2.2102]
[1757333739153,2.66638765,4309.6,4309.5,2.2102]
[1757333739653,1.84268765,4309.6,4309.5,2.2102]
[1757333740048,2.10695485,4309.6,4309.5,2.2102]
[1757333740258,1.95868765,4309.6,4309.5,2.2102]
[1757333741557,0.92898765,4309.6,4309.5,2.2102]
[1757333743363,0.35,4309.6,4309.5,2.2102]
[1757333745062,1.3797,4309.6,4309.5,2.2102]
[1757333745361,2.78148335,4309.6,4309.5,2.2102]
[1757333745757,1.95778335,4309.6,4309.5,2.2102]
[1757333751160,2.10429792,4309.6,4309.5,2.2102]
[1757333752467,1.59039792,4309.6,4309.5,2.2102]
[1757333753571,2.10429792,4309.6,4309.5,2.2102]
[1757333758976,2.10429792,4309.6,4309.5,0.7685]
[1757333759177,2.10429792,4309.6,4309.2,3.2736]
[1757333759178,1.8534,4309.3,4309.2,3.2736]
[1757333759381,3.04894334,4309.3,4309.2,3.2736]
[1757333759680,3.28100335,4309.3,4309.2,3.2736]
[1757333759982,2.57889573,4309.3,4309.2,3.2736]
[1757333760281,8.06399122,4309.3,4309.2,4.0421]
[1757333760682,8.17999122,4309.3,4309.2,4.0421]
[1757333760879,3.35629122,4309.3,4309.2,5.1472]
[1757333761072,1.07549573,4309.3,4309.2,5.1472]
[1757333761276,1.59129573,4309.3,4309.2,5.1472]
[1757333763782,2.92889573,4309.3,4309.2,5.1472]
[1757333764881,2.10519573,4309.3,4309.2,5.1472]
[1757333765678,1.59129573,4309.3,4309.2,5.1472]
[1757333765879,1.07549573,4309.3,4309.2,1.8736]
[1757333768382,0.84149573,4309.3,4309.2,1.8736]
[1757333768577,0.84149573,4309.3,4309.2,5.0814]
[1757333768879,0.69498116,4309.3,4309.2,5.0814]
[1757333769290,1.25109549,4310.3,4310.1,0.41763]
[1757333769487,0.3135,4311.0,4310.2,3.67379]
[1757333769682,1.0837,4311.0,4310.9,3.2078]
[1757333769987,1.6296,4311.0,4310.9,3.2078]
[1757333770686,2.1817,4311.0,4310.9,3.2078]
[1757333770883,2.32833126,4311.0,4310.9,3.2078]
[1757333771078,0.3135,4310.5,4310.2,3.2078]
[1757333771284,1.8682,4310.3,4310.2,3.2078]
[1757333785891,0.7702,4311.6,4310.2,7.67481]
[1757333786098,0.7702,4311.9,4311.4,3.2078]
[1757333786293,0.7702,4312.4,4311.5,0.237]
[1757333786590,0.8594,4312.5,4311.5,0.237]
[1757333786591,0.7702,4312.2,4312.1,3.2078]
[1757333787395,0.237,4312.4,4312.1,3.2078]